fUST/lending_fUST_20260101
["ID","MTS","AMOUNT","RATE_DAILY","PERIOD"]
[400239229,1767211848020,-1041.66666667,0.000283,3]
[400239230,1767211848029,-1102.88,0.000283,14]
[400239231,1767211848039,-179.85611511,0.00028359,2]
[400239232,1767211848049,-921.25637526,0.00028422,2]
[400239233,1767211848058,-533.88981491,0.00028471,2]
[400239234,1767211848068,-2579.17784983,0.00028471,2]
[400239235,1767211848078,-192.8,0.00028609,3]
[400239236,1767211848087,-3147.76375777,0.00028623,2]
[400239237,1767211848097,-160.0,0.00028637,4]
[400239238,1767211848106,-10721.26,0.000287,2]
[400239239,1767211848115,-921.25637526,0.00028744,2]
[400239240,1767211848124,-200.54705607,0.00028776,13]
[400239241,1767211848133,-1041.66666667,0.00029,10]
[400239242,1767211848143,-553.64373807,0.00029019,2]
[400239243,1767211848152,-2674.60743027,0.00029019,2]
[400239244,1767211848161,-921.25637526,0.00029067,2]
[400239245,1767211848171,-210.0,0.00029096,32]
[400239246,1767211848180,-1041.66666667,0.000291,3]
[400239247,1767211848190,-168.0,0.00029178,2]
[400239248,1767211848199,-488.0,0.00029185,2]
[400239249,1767211848208,-160.0,0.00029221,5]
[400239250,1767211848217,-921.25637526,0.00029389,2]
[400239251,1767211848227,-488.0,0.00029465,2]
[400239252,1767211848236,-200.54705607,0.00029491,15]
[400239253,1767211848245,-574.12855637,0.00029567,2]
[400239254,1767211848255,-2773.56790519,0.00029567,2]
[400239255,1767211848264,-488.0,0.00029659,7]
[400239256,1767211848273,-3147.76375777,0.00029683,2]
[400239257,1767211848283,-921.25637526,0.00029711,2]
[400239258,1767211848293,-168.0,0.00029774,2]
[400239259,1767211848303,-160.0,0.00029805,6]
[400239260,1767211848313,-168.0,0.00029826,2]
[400239261,1767211848322,-5000.0,0.00029871,2]
[400239262,1767211848332,-168.0,0.00029873,2]
[400239263,1767211848342,-168.0,0.00029888,2]
[400239264,1767211848351,-488.0,0.00029896,2]
[400239265,1767211848362,-921.25637526,0.00030033,2]
[400239266,1767211848372,-168.0,0.00030107,2]
[400239267,1767211848383,-595.37131296,0.00030115,2]
[400239268,1767211848393,-2876.18991768,0.00030115,2]
[400239269,1767211848404,-488.0,0.00030159,7]
[400239270,1767211848414,-488.0,0.00030163,7]
[400239271,1767211848423,-168.0,0.00030174,2]
[400239272,1767211848433,-200.54705607,0.00030206,16]
[400239273,1767211848443,-488.0,0.0003023,2]
[400239274,1767211848453,-720.3775806,0.00030289,2]
[400239275,1767211848463,-1400.0,0.00030308,7]
[400239276,1767211848472,-1400.0,0.00030317,7]
[400239277,1767211848481,-168.0,0.00030342,2]
[400239278,1767211848491,-921.25637526,0.00030356,2]
[400239279,1767211848500,-192.8,0.00030367,4]
[400239280,1767211848510,-1400.0,0.00030388,7]
[400239281,1767211848520,-160.0,0.0003039,7]
[400239282,1767211848529,-500.0,0.00030399,7]
[400239283,1767211848539,-500.0,0.00030409,7]
[400239284,1767211848549,-168.0,0.00030421,2]
[400239285,1767211848559,-1400.0,0.00030476,7]
[400239286,1767211848569,-179.819,0.00030486,26]
[400239287,1767211848579,-1400.0,0.00030588,7]
[400239288,1767211848588,-500.0,0.00030617,7]
[400239289,1767211848598,-500.0,0.00030629,7]
[400239290,1767211848608,-617.40005154,0.00030663,2]
[400239291,1767211848617,-2271.66553811,0.00030663,2]
[400239292,1767211848627,-921.25637526,0.00030678,2]
[400239293,1767211848637,-10721.26,0.000307,2]
[400239294,1767211848649,-489.0,0.00030703,2]
[400239295,1767211848659,-3147.76375777,0.00030742,2]
[400239296,1767211848668,-1400.0,0.00030776,7]
[400239297,1767211848679,-488.0,0.00030778,2]
[400239298,1767211848689,-488.0,0.00030794,2]
[400239299,1767211848698,-242.47185193,0.00030815,7]
[400239300,1767211848708,-1400.0,0.00030841,7]
[400239301,1767211848718,-1400.0,0.00030893,7]
[400239302,1767211848728,-200.54705607,0.0003092,17]
[400239303,1767211848737,-500.0,0.00030945,7]
[400239304,1767211848747,-916.36,0.00030958,30]
[400239305,1767211848756,-24425.5686256,0.00030959,10]
[400239306,1767211848766,-1400.0,0.00030965,7]
[400239307,1767211848775,-1400.0,0.00030974,7]
[400239308,1767211848784,-160.0,0.00030974,8]
[400239309,1767211848794,-193.78459303,0.00031,120]
[400239310,1767211848803,-178.8674121,0.00031,120]
[400239311,1767211848812,-180.54271303,0.00031,120]
[400239312,1767211848822,-161.01318651,0.00031,120]
[400239313,1767211848832,-198.07485528,0.00031,120]
[400239314,1767211848841,-162.33069799,0.00031,120]
[400239315,1767211848851,-183.42010434,0.00031,120]
[400239316,1767211848861,-180.68929149,0.00031,120]
[400239317,1767211848870,-1430.86618739,0.00031,120]
[400239318,1767211848880,-183.49170094,0.00031,120]
[400239319,1767211848889,-162.37843673,0.00031,120]
[400239320,1767211848899,-953.84,0.00031,14]
[400239321,1767211848908,-206.24088796,0.00031,120]
[400239322,1767211848917,-309.65070131,0.00031,120]
[400239323,1767211848926,-921.25637526,0.00031,2]
[400239324,1767211848935,-168.0,0.00031012,2]
[400239325,1767211848945,-206.57119576,0.00031036,10]
[400239326,1767211848954,-168.0,0.00031128,2]
[400239327,1767211848963,-640.24385345,0.00031211,2]
[400239328,1767211848973,-160.0,0.00031288,45]
[400239329,1767211848982,-488.0,0.00031428,2]
[400239330,1767211848992,-488.0,0.00031429,2]
[400239331,1767211849001,-500.0,0.0003146,7]
[400239332,1767211849010,-916.36,0.00031506,31]
[400239333,1767211849019,-160.0,0.00031559,9]
[400239334,1767211849028,-200.54705607,0.00031635,19]
[400239335,1767211849038,-500.0,0.00031677,7]
[400239336,1767211849047,-168.0,0.0003172,2]
[400239337,1767211849056,-1400.0,0.0003172,7]
[400239338,1767211849066,-663.93287602,0.00031759,2]
[400239339,1767211849075,-500.0,0.0003176,7]
[400239340,1767211849085,-1400.0,0.00031763,7]
[400239341,1767211849094,-168.0,0.00031779,2]
[400239342,1767211849103,-3147.76375777,0.00031802,2]
[400239343,1767211849113,-1400.0,0.00031828,7]
[400239344,1767211849123,-1400.0,0.00031839,7]
[400239345,1767211849132,-1226.0,0.00031845,30]
[400239346,1767211849142,-18560.0,0.00031845,30]
[400239347,1767211849152,-819.5,0.00031845,30]
[400239348,1767211849162,-193.78459303,0.000319,120]
[400239349,1767211849171,-178.8674121,0.000319,120]
[400239350,1767211849180,-180.54271303,0.000319,120]
[400239351,1767211849189,-161.01318651,0.000319,120]
[400239352,1767211849198,-198.07485528,0.000319,120]
[400239353,1767211849208,-162.33069799,0.000319,120]
[400239354,1767211849217,-183.42010434,0.000319,120]
[400239355,1767211849226,-180.68929149,0.000319,120]
[400239356,1767211849236,-176.02,0.000319,7]
[400239357,1767211849245,-1430.86618739,0.000319,120]
[400239358,1767211849254,-183.49170094,0.000319,120]
[400239359,1767211849264,-162.37843673,0.000319,120]
[400239360,1767211849273,-1017.21903832,0.00032,7]
[400239361,1767211849283,-1400.0,0.00032004,7]
[400239362,1767211849292,-1400.0,0.00032053,7]
[400239363,1767211849302,-916.36,0.00032054,32]
[400239364,1767211849311,-1400.0,0.00032076,7]
[400239365,1767211849320,-1400.0,0.00032098,7]
[400239366,1767211849330,-1400.0,0.00032107,7]
[400239367,1767211849340,-192.8,0.00032126,5]
[400239368,1767211849349,-160.0,0.00032143,10]
[400239369,1767211849359,-1400.0,0.00032144,7]
[400239370,1767211849368,-1400.0,0.00032188,7]
[400239371,1767211849378,-1400.0,0.00032206,7]
[400239372,1767211849388,-500.0,0.00032217,7]
[400239373,1767211849397,-1400.0,0.00032256,7]
[400239374,1767211849407,-1400.0,0.00032266,7]
[400239375,1767211849417,-769.8691701,0.00032289,2]
[400239376,1767211849426,-10721.26,0.000323,2]
[400239377,1767211849436,-688.49839244,0.00032307,2]
[400239378,1767211849446,-200.54705607,0.0003235,20]
[400239379,1767211849550,-500.0,0.00032362,7]
[400239380,1767211849560,-500.0,0.00032383,7]
[400239381,1767211849570,-1400.0,0.00032417,7]
[400239382,1767211849579,-1400.0,0.00032475,7]
[400239383,1767211849589,-1400.0,0.0003248,7]
[400239384,1767211849599,-1400.0,0.00032496,7]
[400239385,1767211849608,-2718.46508754,0.00032557,7]
[400239386,1767211849619,-916.36,0.00032602,33]
[400239387,1767211849628,-160.0,0.00032728,11]
[400239388,1767211849638,-713.97283296,0.00032855,2]
[400239389,1767211849648,-3147.76375777,0.00032862,2]
[400239390,1767211849658,-500.0,0.00032877,5]
[400239391,1767211849668,-150.0,0.00032877,5]
[400239392,1767211849678,-193.78459303,0.000329,120]
[400239393,1767211849689,-178.8674121,0.000329,120]
[400239394,1767211849699,-180.54271303,0.000329,120]
[400239395,1767211849708,-161.01318651,0.000329,120]
[400239396,1767211849719,-162.33069799,0.000329,120]
[400239397,1767211849728,-180.68929149,0.000329,120]
[400239398,1767211849738,-1430.86618739,0.000329,120]
[400239399,1767211849747,-183.49170094,0.000329,120]
[400239400,1767211849756,-280.93358368,0.00032917,7]
[400239401,1767211849766,-953.84,0.00033,30]
[400239402,1767211849776,-166.0,0.00033,14]
[400239403,1767211849786,-1016.0,0.00033,7]
[400239404,1767211849795,-200.54705607,0.00033065,22]
[400239405,1767211849804,-5000.0,0.00033121,2]
[400239406,1767211849814,-916.36,0.0003315,34]
[400239407,1767211849823,-1036.612644,0.00033165,2]
[400239408,1767211849832,-2863.2521,0.0003322,30]
[400239409,1767211849841,-160.0,0.00033312,12]
[400239410,1767211849851,-740.38982778,0.00033403,2]
[400239411,1767211849861,-1004.98248976,0.00033425,5]
[400239412,1767211849870,-174.0,0.00033479,61]
[400239413,1767211849879,-250.11399188,0.00033589,7]
[400239414,1767211849888,-555.40562001,0.00033589,7]
[400239415,1767211849897,-1102.88,0.000336,30]
[400239416,1767211849907,-916.36,0.00033698,35]
[400239417,1767211849916,-250.0,0.00033699,5]
[400239418,1767211849925,-200.26076,0.000337,120]
[400239419,1767211849935,-200.54705607,0.00033779,23]
[400239420,1767211849944,-295.735,0.000338,20]
[400239421,1767211849953,-295.73,0.000338,20]
[400239422,1767211849963,-5000.0,0.00033818,6]
[400239423,1767211849972,-192.8,0.00033885,6]
[400239424,1767211849981,-160.0,0.00033896,13]
[400239425,1767211849991,-180.54271303,0.000339,120]
[400239426,1767211850002,-162.33069799,0.000339,120]
[400239427,1767211850011,-180.68929149,0.000339,120]
[400239428,1767211850020,-1430.86618739,0.000339,120]
[400239429,1767211850029,-183.49170094,0.000339,120]
[400239430,1767211850038,-3147.76375777,0.00033922,2]
[400239431,1767211850047,-767.7842514,0.00033951,2]
[400239432,1767211850057,-5000.0,0.00034245,15]
[400239433,1767211850066,-916.36,0.00034246,36]
[400239434,1767211850076,-819.36075961,0.00034289,120]
[400239435,1767211850085,-5000.0,0.00034337,15]
[400239436,1767211850095,-160.0,0.00034481,14]
[400239437,1767211850104,-200.54705607,0.00034494,24]
[400239438,1767211850114,-796.19226871,0.00034499,2]
[400239439,1767211850124,-151.19,0.00034519,60]
[400239440,1767211850133,-350.0,0.00034521,5]
[400239441,1767211850143,-166.0,0.00034521,30]
[400239442,1767211850153,-2000.0,0.00034538,7]
[400239443,1767211850163,-151.19,0.00034619,60]
[400239444,1767211850172,-5000.0,0.00034649,10]
[400239445,1767211850182,-10721.26,0.000347,14]
[400239446,1767211850191,-151.19,0.00034719,60]
[400239447,1767211850200,-5000.0,0.00034787,15]
[400239448,1767211850210,-5000.0,0.00034793,15]
[400239449,1767211850219,-916.36,0.00034794,37]
[400239450,1767211850229,-150.0,0.00034799,2]
[400239451,1767211850238,-150.16,0.00034799,2]
[400239452,1767211850248,-151.19,0.00034819,60]
[400239453,1767211850257,-180.54271303,0.000349,120]
[400239454,1767211850266,-180.68929149,0.000349,120]
[400239455,1767211850276,-1430.86618739,0.000349,120]
[400239456,1767211850285,-151.21868735,0.00034919,60]
[400239457,1767211850294,-3147.76375777,0.00034981,2]
[400239458,1767211850303,-825.65138265,0.00035047,2]
[400239459,1767211850313,-160.0,0.00035065,15]
[400239460,1767211850322,-169.32246815,0.00035178,30]
[400239461,1767211850332,-200.54705607,0.00035209,26]
[400239462,1767211850341,-1102.88,0.000353,30]
[400239463,1767211850351,-5000.0,0.00035341,15]
[400239464,1767211850360,-916.36,0.00035342,38]
[400239465,1767211850370,-450.0,0.00035342,5]
[400239466,1767211850379,-367.96456977,0.00035369,15]
[400239467,1767211850388,-5000.0,0.00035384,15]
[400239468,1767211850398,-150.055,0.00035472,2]
[400239469,1767211850407,-150.142,0.00035472,2]
[400239470,1767211850416,-250.0,0.00035472,2]
[400239471,1767211850426,-151.687,0.00035472,2]
[400239472,1767211850435,-627.0,0.00035472,2]
[400239473,1767211850444,-2156.0,0.00035472,2]
[400239474,1767211850454,-1364.0,0.00035472,2]
[400239475,1767211850464,-416.0,0.00035472,2]
[400239476,1767211850473,-416.0,0.00035472,2]
[400239477,1767211850483,-150.0,0.00035472,2]
[400239478,1767211850492,-376.3998898,0.00035556,30]
[400239479,1767211850503,-376.3998898,0.00035556,30]
[400239480,1767211850513,-2000.0,0.0003563,7]
[400239481,1767211850522,-192.8,0.00035643,30]
[400239482,1767211850533,-169.32246815,0.00035644,30]
[400239483,1767211850544,-160.0,0.0003565,16]
[400239484,1767211850554,-726.0,0.00035678,11]
[400239485,1767211850566,-500.0,0.00035747,14]
[400239486,1767211850577,-5000.0,0.00035795,14]
[400239487,1767211850587,-1720.31022871,0.00035831,2]
[400239488,1767211850597,-5000.0,0.00035833,15]
[400239489,1767211850606,-376.3998898,0.00035863,30]
[400239490,1767211850618,-5000.0,0.00035889,15]
[400239491,1767211850627,-916.36,0.0003589,39]
[400239492,1767211850636,-332.0,0.0003589,30]
[400239493,1767211850647,-5000.0,0.00035899,15]
[400239494,1767211850657,-1430.86618739,0.000359,120]
[400239495,1767211850666,-600.0,0.00035906,2]
[400239496,1767211850675,-200.54705607,0.00035923,27]
[400239497,1767211850684,-1720.31022871,0.00035931,2]
[400239498,1767211850693,-726.0,0.00035998,11]
[400239499,1767211850703,-7606.29489299,0.00036,2]
[400239500,1767211850712,-332.0,0.00036,30]
[400239501,1767211850721,-1720.31022871,0.00036031,2]
[400239502,1767211850731,-3147.76375777,0.00036041,2]
[400239503,1767211850739,-726.0,0.00036048,11]
[400239504,1767211850748,-726.0,0.00036048,11]
[400239505,1767211850757,-169.32246814,0.0003611,30]
[400239506,1767211850766,-169.32246815,0.0003611,30]
[400239507,1767211850776,-5000.0,0.00036116,8]
[400239508,1767211850785,-202.21692799,0.00036117,8]
[400239509,1767211850795,-202.21692799,0.00036117,8]
[400239510,1767211850804,-202.21692799,0.00036117,8]
[400239511,1767211850813,-202.21692799,0.00036117,8]
[400239512,1767211850822,-202.21692799,0.00036117,8]
[400239513,1767211850831,-202.21692799,0.00036117,8]
[400239514,1767211850840,-202.21692799,0.00036117,8]
[400239515,1767211850849,-1720.31022871,0.00036131,2]
[400239516,1767211850859,-651.10848757,0.00036164,5]
[400239517,1767211850867,-5000.0,0.00036218,15]
[400239518,1767211850877,-239.50763353,0.00036219,7]
[400239519,1767211850886,-1720.31022871,0.00036231,2]
[400239520,1767211850895,-160.0,0.00036234,17]
[400239521,1767211850905,-376.3998898,0.00036247,30]
[400239522,1767211850914,-376.3998898,0.00036247,30]
[400239523,1767211850924,-376.3998898,0.00036247,30]
[400239524,1767211850932,-376.3998898,0.00036247,30]
[400239525,1767211850942,-800.0,0.00036266,7]
[400239526,1767211850951,-600.0,0.0003628,2]
[400239527,1767211850960,-868.85234912,0.00036289,120]
[400239528,1767211850969,-10721.26,0.000363,14]
[400239529,1767211850978,-1500.625286,0.000363,24]
[400239530,1767211850987,-1720.31022871,0.00036331,2]
[400239531,1767211850996,-726.0,0.00036355,11]
[400239532,1767211851005,-5000.0,0.00036356,15]
[400239533,1767211851015,-5000.0,0.0003637,3]
[400239534,1767211851023,-5000.0,0.00036371,3]
[400239535,1767211851032,-874.0,0.00036399,11]
[400239536,1767211851042,-1720.31022871,0.00036431,2]
[400239537,1767211851051,-5000.0,0.00036431,15]
[400239538,1767211851060,-5000.0,0.00036437,15]
[400239539,1767211851069,-916.36,0.00036438,40]
[400239540,1767211851078,-153.0,0.00036438,30]
[400239541,1767211851088,-303.4572356,0.00036438,30]
[400239542,1767211851097,-193.3811029,0.00036438,30]
[400239543,1767211851106,-153.0,0.00036438,30]
[400239544,1767211851116,-599.7286954,0.00036438,30]
[400239545,1767211851125,-2242.59364884,0.00036447,2]
[400239546,1767211851134,-376.3998898,0.00036515,30]
[400239547,1767211851143,-376.3998898,0.00036515,30]
[400239548,1767211851152,-376.3998898,0.00036515,30]
[400239549,1767211851161,-376.3998898,0.00036515,30]
[400239550,1767211851175,-1720.31022871,0.00036531,2]
[400239551,1767211851186,-5000.0,0.00036537,5]
[400239552,1767211851200,-169.32246815,0.00036575,30]
[400239553,1767211851210,-726.0,0.0003661,11]
[400239554,1767211851218,-308663.36,0.00036615,5]
[400239555,1767211851228,-7073.29,0.00036615,5]
[400239556,1767211851237,-1720.31022871,0.00036631,2]
[400239557,1767211851246,-726.0,0.00036638,11]
[400239558,1767211851256,-400.99411215,0.00036638,29]
[400239559,1767211851265,-500.0,0.0003664,30]
[400239560,1767211851275,-600.0,0.00036654,2]
[400239561,1767211851284,-2000.0,0.00036723,7]
[400239562,1767211851294,-2242.59364885,0.00036758,2]
[400239563,1767211851303,-170.0,0.00036767,92]
[400239564,1767211851312,-800.0,0.00036788,7]
[400239565,1767211851321,-5000.0,0.00036799,15]
[400239566,1767211851331,-1500.0,0.000368,24]
[400239567,1767211851340,-160.0,0.00036819,18]
[400239568,1767211851350,-500.0,0.0003684,30]
[400239569,1767211851359,-1253.8276947,0.00036848,2]
[400239570,1767211851369,-2728.6374517,0.00036848,2]
[400239571,1767211851378,-1737.2282309,0.00036848,2]
[400239572,1767211851388,-18135.6373024,0.00036848,2]
[400239573,1767211851398,-1182.0710391,0.00036848,2]
[400239574,1767211851408,-66451.0533141,0.00036848,2]
[400239575,1767211851418,-5000.0,0.00036849,15]
[400239576,1767211851427,-151.0,0.00036878,31]
[400239577,1767211851437,-151.0,0.00036878,31]
[400239578,1767211851447,-151.0,0.00036878,7]
[400239579,1767211851456,-151.0,0.00036878,7]
[400239580,1767211851465,-151.0,0.00036878,7]
[400239581,1767211851475,-151.0,0.00036878,31]
[400239582,1767211851484,-151.0,0.00036878,31]
[400239583,1767211851493,-153.327647,0.00036878,31]
[400239584,1767211851502,-151.0,0.00036878,31]
[400239585,1767211851512,-151.0,0.00036878,31]
[400239586,1767211851522,-151.0,0.00036878,31]
[400239587,1767211851532,-151.0,0.00036878,31]
[400239588,1767211851541,-151.0,0.00036878,31]
[400239589,1767211851550,-151.0,0.00036878,31]
[400239590,1767211851559,-151.0,0.00036878,31]
[400239591,1767211851655,-300.34133,0.00036878,31]
[400239592,1767211851669,-440.924061,0.00036878,31]
[400239593,1767211851679,-440.924061,0.00036878,31]
[400239594,1767211851688,-440.924061,0.00036878,31]
[400239595,1767211851697,-440.924061,0.00036878,31]
[400239596,1767211851706,-151.0,0.00036878,31]
[400239597,1767211851715,-151.000017,0.00036878,31]
[400239598,1767211851726,-151.0,0.00036878,31]
[400239599,1767211851735,-612.575308,0.00036878,31]
[400239600,1767211851744,-151.0,0.00036878,31]
[400239601,1767211851754,-612.575308,0.00036878,31]
[400239602,1767211851763,-612.575308,0.00036878,31]
[400239603,1767211851772,-612.575308,0.00036878,31]
[400239604,1767211851781,-151.0,0.00036878,31]
[400239605,1767211851790,-151.0,0.00036878,31]
[400239606,1767211851799,-151.0,0.00036878,31]
[400239607,1767211851810,-805.861522,0.00036878,31]
[400239608,1767211851820,-805.861522,0.00036878,31]
[400239609,1767211851830,-805.861522,0.00036878,31]
[400239610,1767211851839,-151.0,0.00036878,31]
[400239611,1767211851848,-805.861522,0.00036878,31]
[400239612,1767211851859,-151.0,0.00036878,31]
[400239613,1767211851869,-151.0,0.00036878,31]
[400239614,1767211851879,-151.0,0.00036878,31]
[400239615,1767211851888,-151.0,0.00036878,31]
[400239616,1767211851898,-151.0,0.00036878,31]
[400239617,1767211851907,-300.511634,0.00036878,31]
[400239618,1767211851917,-1559.059603,0.00036878,31]
[400239619,1767211851926,-1559.059603,0.00036878,31]
[400239620,1767211851935,-1559.059603,0.00036878,31]
[400239621,1767211851945,-1559.059603,0.00036878,31]
[400239622,1767211851954,-394.521351,0.00036878,31]
[400239623,1767211851964,-429.596572,0.00036878,31]
[400239624,1767211851973,-394.521351,0.00036878,31]
[400239625,1767211851982,-429.596572,0.00036878,31]
[400239626,1767211851991,-394.521351,0.00036878,31]
[400239627,1767211852000,-429.596572,0.00036878,31]
[400239628,1767211852010,-394.521351,0.00036878,31]
[400239629,1767211852019,-429.596572,0.00036878,31]
[400239630,1767211852028,-151.0,0.00036878,31]
[400239631,1767211852038,-151.0,0.00036878,31]
[400239632,1767211852047,-151.0,0.00036878,31]
[400239633,1767211852056,-166.656279,0.00036878,31]
[400239634,1767211852066,-5000.0,0.00036879,15]
[400239635,1767211852075,-800.0,0.00036904,7]
[400239636,1767211852084,-5000.0,0.00036916,15]
[400239637,1767211852093,-198148.91581175,0.00036917,17]
[400239638,1767211852103,-5000.0,0.00036949,7]
[400239639,1767211852112,-5000.0,0.00036977,15]
[400239640,1767211852122,-179.18193,0.00036977,31]
[400239641,1767211852132,-151.0,0.00036977,31]
[400239642,1767211852142,-151.0,0.00036977,31]
[400239643,1767211852151,-151.0,0.00036977,31]
[400239644,1767211852160,-1684.038653,0.00036977,31]
[400239645,1767211852169,-151.0,0.00036977,31]
[400239646,1767211852179,-1684.038653,0.00036977,31]
[400239647,1767211852188,-151.0,0.00036977,31]
[400239648,1767211852197,-1684.038653,0.00036977,31]
[400239649,1767211852206,-1684.038653,0.00036977,31]
[400239650,1767211852215,-151.0,0.00036977,31]
[400239651,1767211852224,-151.0,0.00036977,31]
[400239652,1767211852234,-151.0,0.00036977,31]
[400239653,1767211852243,-151.0,0.00036977,28]
[400239654,1767211852252,-151.0,0.00036977,31]
[400239655,1767211852262,-230.54366,0.00036977,31]
[400239656,1767211852271,-230.54366,0.00036977,31]
[400239657,1767211852281,-230.54366,0.00036977,31]
[400239658,1767211852290,-230.54366,0.00036977,31]
[400239659,1767211852300,-913.677244,0.00036977,31]
[400239660,1767211852309,-913.677244,0.00036977,31]
[400239661,1767211852319,-913.677244,0.00036977,31]
[400239662,1767211852328,-151.0,0.00036977,31]
[400239663,1767211852339,-913.677244,0.00036977,31]
[400239664,1767211852348,-151.0,0.00036977,31]
[400239665,1767211852358,-151.0,0.00036977,31]
[400239666,1767211852367,-151.0,0.00036977,31]
[400239667,1767211852377,-151.0,0.00036977,31]
[400239668,1767211852386,-151.0,0.00036977,31]
[400239669,1767211852395,-863.760546,0.00036977,31]
[400239670,1767211852406,-151.0,0.00036977,31]
[400239671,1767211852415,-151.0,0.00036977,31]
[400239672,1767211852425,-863.760546,0.00036977,31]
[400239673,1767211852435,-863.760546,0.00036977,31]
[400239674,1767211852444,-863.760546,0.00036977,31]
[400239675,1767211852453,-151.0,0.00036977,31]
[400239676,1767211852463,-151.0,0.00036978,31]
[400239677,1767211852472,-151.0,0.00036978,31]
[400239678,1767211852481,-151.0,0.00036978,31]
[400239679,1767211852490,-151.0,0.00036978,31]
[400239680,1767211852499,-151.0,0.00036978,31]
[400239681,1767211852509,-151.0,0.00036978,31]
[400239682,1767211852518,-151.0,0.00036978,31]
[400239683,1767211852528,-151.0,0.00036978,31]
[400239684,1767211852538,-151.0,0.00036978,31]
[400239685,1767211852548,-151.0,0.00036978,31]
[400239686,1767211852558,-151.0,0.00036978,31]
[400239687,1767211852567,-185.00562,0.00036978,31]
[400239688,1767211852577,-152.611704,0.00036978,31]
[400239689,1767211852586,-5000.0,0.00036985,15]
[400239690,1767211852596,-916.36,0.00036986,41]
[400239691,1767211852605,-160.0,0.00036995,11]
[400239692,1767211852615,-1430.86618739,0.00037,120]
[400239693,1767211852624,-1592.861267,0.00037001,31]
[400239694,1767211852633,-1592.861267,0.00037001,31]
[400239695,1767211852645,-1592.861267,0.00037001,31]
[400239696,1767211852657,-151.0,0.00037001,31]
[400239697,1767211852666,-1592.861267,0.00037001,31]
[400239698,1767211852676,-151.0,0.00037001,31]
[400239699,1767211852686,-151.0,0.00037001,31]
[400239700,1767211852695,-203.384799,0.00037001,31]
[400239701,1767211852705,-203.384799,0.00037001,31]
[400239702,1767211852714,-203.384799,0.00037001,31]
[400239703,1767211852724,-203.384799,0.00037001,31]
[400239704,1767211852737,-234.643774,0.00037001,31]
[400239705,1767211852752,-242.224845,0.00037001,31]
[400239706,1767211852761,-242.224845,0.00037001,31]
[400239707,1767211852771,-242.224845,0.00037001,31]
[400239708,1767211852780,-242.224845,0.00037001,31]
[400239709,1767211852790,-992.843474,0.00037001,31]
[400239710,1767211852799,-992.843474,0.00037001,31]
[400239711,1767211852809,-992.843474,0.00037001,31]
[400239712,1767211852818,-992.843474,0.00037001,31]
[400239713,1767211852828,-151.0,0.00037001,31]
[400239714,1767211852837,-151.0,0.00037001,31]
[400239715,1767211852846,-151.0,0.00037001,31]
[400239716,1767211852855,-300.857289,0.00037001,31]
[400239717,1767211852864,-300.857289,0.00037001,31]
[400239718,1767211852874,-300.857289,0.00037001,31]
[400239719,1767211852883,-374.297028,0.00037001,31]
[400239720,1767211852892,-279.119257,0.00037001,31]
[400239721,1767211852901,-300.857289,0.00037001,31]
[400239722,1767211852910,-374.297028,0.00037001,31]
[400239723,1767211852919,-151.0,0.00037001,31]
[400239724,1767211852929,-374.297028,0.00037001,31]
[400239725,1767211852938,-151.0,0.00037001,31]
[400239726,1767211852947,-374.297028,0.00037001,31]
[400239727,1767211852956,-337.860295,0.00037001,31]
[400239728,1767211852965,-337.860295,0.00037001,31]